bitfinex/quotes_SOLUSD_20241122
["timestamp","ask_amount","ask_price","bid_price","bid_amount"]
[1732298407104,12.05586143,254.32,254.25,1.34133933]
[1732298407310,12.05586143,254.31,254.25,1.34133933]
[1732298407709,12.05586143,254.33,254.27,1.34133933]
[1732298407909,12.05586143,254.29,254.27,1.34133933]
[1732298408402,12.05586143,254.29,254.24,1.34133933]
[1732298408607,12.05586143,254.29,254.15,20.0]
[1732298408608,12.05586143,254.25,254.2,1.34133933]
[1732298408826,12.05586143,254.23,254.2,1.34133933]
[1732298409020,12.05586143,254.21,254.17,1.34133933]
[1732298409216,12.05586143,254.2,254.17,1.34133933]
[1732298409529,12.05586143,254.19,254.15,1.34133933]
[1732298412118,12.05586143,254.19,254.12,20.0]
[1732298412119,12.05586143,254.21,254.17,1.34133933]
[1732298412323,12.05586143,254.22,254.17,1.34133933]
[1732298412619,12.05586143,254.18,254.06,1.34133933]
[1732298412809,15.2752,254.23,254.06,1.34133933]
[1732298412810,12.05586143,254.1,254.06,1.34133933]
[1732298413012,12.05586143,254.08,254.06,1.34133933]
[1732298413721,12.05586143,254.08,254.04,1.34133933]
[1732298414119,12.05586143,254.08,254.07,1.34133933]
[1732298415036,12.05586143,254.08,254.0,1.34133933]
[1732298415215,12.05586143,254.03,254.0,1.34133933]
[1732298415538,2.92832355,254.02,254.0,1.34133933]
[1732298415714,2.92832355,254.01,254.0,1.34133933]
[1732298415910,14.98418498,254.01,254.0,1.34133933]
[1732298416115,19.66904187,254.01,254.0,1.34133933]
[1732298416316,12.05586143,254.01,254.0,1.34133933]
[1732298416637,19.6685814,254.01,253.96,1.34133933]
[1732298416818,12.05586143,253.99,253.94,1.34133933]
[1732298417137,2.92792659,253.98,253.94,1.34133933]
[1732298417337,12.05586143,253.99,253.96,1.41133933]
[1732298417338,2.92784398,253.97,253.96,1.41133933]
[1732298417714,12.05586143,253.99,253.96,1.41133933]
[1732298418124,12.05586143,254.01,253.96,1.41133933]
[1732298418323,2.91787561,254.0,253.99,1.34133933]
[1732298418638,12.05586143,254.06,254.01,1.34133933]
[1732298418850,2.91912914,254.05,254.01,1.34133933]
[1732298419011,14.97499057,254.04,254.01,1.34133933]
[1732298419211,2.91912914,254.03,254.01,1.34133933]
[1732298419437,2.91912914,254.03,254.01,1.41133933]
[1732298419938,12.05586143,254.02,254.01,0.07]
[1732298420638,12.05586143,254.06,254.01,1.41133933]
[1732298420940,12.05586143,254.06,254.03,1.34133933]
[1732298421138,6.3959,254.12,254.05,1.34133933]
[1732298421322,14.97589231,254.11,254.08,1.34133933]
[1732298421522,7.59208029,254.1,254.08,1.34133933]
[1732298421717,2.92003088,254.09,254.08,1.34133933]
[1732298422215,14.97589231,254.09,254.08,1.41133933]
[1732298422541,12.05586143,254.09,254.08,1.41133933]
[1732298422711,12.05586143,254.09,254.08,0.07]
[1732298423523,14.97193265,254.09,254.08,0.07]
[1732298423934,19.63764661,254.09,254.08,0.07]
[1732298424125,43.41623586,254.09,254.08,0.07]
[1732298424321,23.776884,254.08,253.97,1.34133933]
[1732298424528,12.05586143,254.0,253.97,1.34133933]
[1732298425121,12.05586143,254.0,253.95,1.34133933]
[1732298426137,12.05586143,254.0,253.97,1.34133933]
[1732298427650,12.05586143,254.02,253.99,1.34133933]
[1732298427851,2.91726966,254.01,253.99,1.34133933]
[1732298428029,12.05586143,254.02,253.99,1.34133933]
[1732298428231,2.91724507,254.01,253.99,1.34133933]
[1732298428429,12.05586143,254.02,253.97,1.34133933]
[1732298428649,12.05586143,254.0,253.97,1.34133933]
[1732298429233,12.05586143,253.98,253.95,1.34133933]
[1732298429432,12.05586143,253.96,253.95,1.34133933]
[1732298429923,12.05586143,254.0,253.93,1.34133933]
[1732298430248,12.05586143,253.98,253.91,1.34133933]
[1732298430458,2.91872127,253.97,253.91,1.34133933]
[1732298430651,12.05586143,253.98,253.91,1.34133933]
[1732298432149,2.91718045,253.97,253.93,1.34133933]
[1732298432352,12.05586143,254.0,253.93,1.34133933]
[1732298432560,2.91697279,253.99,253.93,1.34133933]
[1732298432737,2.91697279,253.98,253.93,1.34133933]
[1732298432937,12.05586143,254.0,253.93,1.34133933]
[1732298433143,2.91772202,253.99,253.93,1.34133933]
[1732298435045,12.05586143,254.0,253.93,1.34133933]
[1732298435360,12.05586143,253.98,253.9,1.34133933]
[1732298435534,12.05586143,253.96,253.92,1.34133933]
[1732298436256,12.05586143,253.97,253.92,1.34133933]
[1732298437162,12.05586143,253.99,253.94,1.34133933]
[1732298437464,12.05586143,254.01,253.94,1.34133933]
[1732298437771,2.91397775,254.0,253.98,1.34133933]
[1732298438065,12.05586143,254.09,254.02,1.34133933]
[1732298438365,4.66175165,254.08,254.02,1.34133933]
[1732298438554,2.91365554,254.08,254.02,1.34133933]
[1732298438759,7.57540719,254.08,254.02,1.34133933]
[1732298438958,2.91365554,254.07,254.02,1.34133933]
[1732298439157,2.91365554,254.06,254.02,1.34133933]
[1732298439364,12.05586143,254.09,254.02,1.34133933]
[1732298439565,2.91364171,254.08,254.02,1.34133933]
[1732298439766,2.91364171,254.07,254.02,1.34133933]
[1732298439945,2.91364171,254.06,253.99,1.34133933]
[1732298440145,2.91364171,254.06,254.02,1.34133933]
[1732298440344,2.91364171,254.06,254.04,1.34133933]
[1732298440564,4.66276148,254.08,254.06,1.34133933]
[1732298440750,4.66310903,254.11,254.08,1.34133933]
[1732298440951,2.91443798,254.1,254.08,1.34133933]
[1732298441253,2.91443798,254.09,254.08,1.34133933]
[1732298441447,4.66310903,254.13,254.11,1.34133933]
[1732298441647,2.91406501,254.12,254.11,1.34133933]
[1732298442247,2.91406501,254.12,254.09,1.34133933]
[1732298442444,2.91406501,254.11,254.07,1.34133933]
[1732298442643,2.91406501,254.1,254.07,1.34133933]
[1732298442953,2.91406501,254.09,254.07,1.34133933]
[1732298443154,12.05586143,254.12,254.09,1.34133933]
[1732298443341,2.91147084,254.11,254.09,1.34133933]
[1732298443539,2.91147084,254.1,254.09,1.34133933]
[1732298444345,12.05586143,254.12,254.09,1.34133933]
[1732298444545,2.91119747,254.11,254.09,1.34133933]
[1732298444747,12.05586143,254.12,254.09,1.34133933]
[1732298445173,2.91112075,254.11,254.09,1.34133933]
[1732298445476,12.05586143,254.14,254.09,1.34133933]
[1732298445647,2.91115441,254.13,254.09,1.34133933]
[1732298446443,12.05586143,254.12,254.09,1.34133933]
[1732298446664,2.91115441,254.11,254.09,1.34133933]
[1732298446852,6.14435863,254.26,254.13,1.34133933]
[1732298447056,12.05586143,254.21,254.18,1.34133933]
[1732298447256,7.56937673,254.2,254.18,1.34133933]
[1732298447451,2.91129874,254.19,254.18,1.34133933]
[1732298448073,14.96716017,254.19,254.15,1.34133933]
[1732298448256,2.91129874,254.18,254.15,1.34133933]
[1732298448459,14.96716017,254.17,254.11,1.34133933]
[1732298448660,12.05586143,254.14,254.11,1.34133933]
[1732298449257,12.05586143,254.16,254.13,1.34133933]
[1732298450275,12.05586143,254.18,254.13,1.34133933]
[1732298451668,2.9047166,254.17,254.13,1.34133933]
[1732298451850,12.05586143,254.18,254.13,1.34133933]
[1732298452050,2.90415009,254.17,254.13,1.34133933]
[1732298452268,12.05586143,254.18,254.13,1.34133933]
[1732298453056,2.90379169,254.17,254.13,1.34133933]
[1732298453367,12.05586143,254.18,254.13,1.34133933]
[1732298453559,2.90337063,254.17,254.13,1.34133933]
[1732298453757,12.05586143,254.18,254.13,1.34133933]
[1732298453951,2.90337233,254.17,254.13,1.34133933]
[1732298454960,12.05586143,254.18,254.17,1.34133933]
[1732298455365,27.07396143,254.28,254.19,1.34133933]
[1732298455366,12.05586143,254.22,254.19,1.34133933]
[1732298455577,2.90290101,254.21,254.19,1.34133933]
[1732298455759,12.05586143,254.24,254.19,1.34133933]
[1732298456149,2.90303288,254.23,254.19,1.34133933]
[1732298456350,12.05586143,254.22,254.17,1.34133933]
[1732298456677,19.3422,254.34,254.17,1.34133933]
[1732298456678,12.05586143,254.2,254.17,1.34133933]
[1732298456851,12.05586143,254.18,254.17,1.34133933]
[1732298457052,12.05586143,254.18,254.14,1.34133933]
[1732298457300,12.05586143,254.16,254.14,1.34133933]
[1732298457652,12.05586143,254.2,254.16,1.34133933]
[1732298458054,12.05586143,254.2,254.14,1.34133933]
[1732298458274,12.05586143,254.2,254.15,1.34133933]
[1732298458983,12.05586143,254.2,254.17,1.34133933]
[1732298459152,12.05586143,254.2,254.16,20.0]
[1732298459557,12.05586143,254.2,254.18,1.34133933]
[1732298459965,12.05586143,254.2,254.16,1.34133933]
[1732298460164,12.05586143,254.22,254.18,1.34133933]
[1732298460364,2.90051584,254.21,254.18,1.34133933]
[1732298460563,12.05586143,254.22,254.18,1.34133933]
[1732298460867,2.90024813,254.21,254.18,1.34133933]
[1732298461068,12.05586143,254.22,254.18,1.34133933]
[1732298461265,2.89995526,254.21,254.18,1.34133933]
[1732298461578,12.05586143,254.2,254.16,1.34133933]
[1732298461780,12.05586143,254.2,254.09,20.0]
[1732298461781,12.05586143,254.22,254.18,1.34133933]
[1732298461975,12.05586143,254.2,254.16,1.34133933]
[1732298462482,12.05586143,254.18,254.14,1.34133933]
[1732298463484,27.709684,254.27,254.04,15.5648]
[1732298463485,1.15866067,254.09,254.04,4.71149041]
[1732298463664,24.11172286,254.15,253.98,1.34133933]
[1732298463665,12.05586143,254.05,253.98,1.34133933]
[1732298463863,12.05586143,253.99,253.98,1.34133933]
[1732298464061,12.05586143,253.99,253.96,1.34133933]
[1732298464369,12.05586143,253.99,253.98,1.34133933]
[1732298466182,12.05586143,253.99,253.95,1.34133933]
[1732298466371,12.05586143,253.99,253.98,1.34133933]
[1732298467700,12.05586143,254.01,254.0,1.34133933]
[1732298468885,12.05586143,254.01,253.96,1.34133933]
[1732298469084,12.05586143,253.98,253.96,1.34133933]
[1732298470188,12.05586143,253.98,253.94,1.38716656]
[1732298470481,12.05586143,253.97,253.94,1.38716656]
[1732298470686,12.05586143,253.99,253.94,1.38716656]
[1732298471196,20.2041,254.04,253.94,0.04582723]
[1732298471197,12.05586143,253.97,253.94,0.04582723]
[1732298471992,12.05586143,253.95,253.94,0.04582723]
[1732298472170,12.05586143,253.97,253.94,1.38716656]
[1732298472370,12.05586143,253.97,253.94,0.04582723]
[1732298472985,12.05586143,253.97,253.94,1.38716656]
[1732298473489,12.05586143,253.97,253.94,0.04582723]
[1732298473792,12.05586143,253.95,253.94,0.04582723]
[1732298480369,35.83274543,253.95,253.94,0.04582723]
[1732298484670,74.56150686,253.95,253.81,1.34133933]
[1732298484897,74.56150686,253.95,253.76,1.34133933]
[1732298484898,12.05586143,253.82,253.76,1.34133933]
[1732298485081,12.05586143,253.77,253.76,1.34133933]
[1732298485285,12.05586143,253.79,253.75,1.34133933]
[1732298485587,12.05586143,253.79,253.78,1.34133933]
[1732298488292,12.05586143,253.79,253.76,1.34133933]
[1732298488491,12.05586143,253.79,253.78,1.34133933]
[1732298488702,12.05586143,253.8,253.78,1.34133933]
[1732298489491,3.9379,253.94,253.82,1.34133933]
[1732298489693,12.05586143,253.87,253.82,1.34133933]
[1732298491075,12.05586143,253.87,253.68,22.5]
[1732298491076,12.05586143,253.85,253.8,1.34133933]
[1732298491791,12.05586143,253.85,253.83,1.34133933]
[1732298492978,12.05586143,253.85,253.81,1.34133933]
[1732298493477,12.05586143,253.85,253.79,1.34133933]
[1732298493698,12.05586143,253.85,253.67,25.91567974]
[1732298493699,12.05586143,253.81,253.74,1.34133933]
[1732298493895,12.05586143,253.78,253.74,1.34133933]
[1732298494205,12.05586143,253.78,253.71,1.34133933]
[1732298494999,12.05586143,253.78,253.73,1.34133933]
[1732298495698,12.05586143,253.84,253.79,1.34133933]
[1732298495888,12.05586143,253.8,253.77,1.34133933]
[1732298498076,12.05586143,253.82,253.79,1.34133933]
[1732298498687,12.05586143,253.82,253.68,20.0]
[1732298498688,12.05586143,253.82,253.81,1.34133933]
[1732298499009,12.05586143,253.84,253.81,1.34133933]
[1732298499304,12.05586143,253.82,253.81,1.34133933]
[1732298499497,12.05586143,253.82,253.77,1.34133933]
[1732298500086,12.05586143,253.8,253.75,1.34133933]
[1732298500688,12.05586143,253.78,253.75,1.34133933]
[1732298503288,12.05586143,253.78,253.77,1.34133933]
[1732298503492,12.05586143,253.8,253.77,1.34133933]
[1732298507094,12.05586143,253.82,253.79,1.34133933]
[1732298508713,12.05586143,253.82,253.81,1.34133933]
[1732298511511,12.05586143,253.84,253.83,1.34133933]
[1732298511699,12.05586143,253.86,253.83,1.34133933]
[1732298511899,12.05586143,253.86,253.85,1.34133933]
[1732298517424,12.05586143,253.88,253.87,1.34133933]
[1732298518520,12.05586143,253.9,253.87,1.34133933]
[1732298518717,12.05586143,253.9,253.89,1.34133933]
[1732298518908,14.96176731,253.9,253.89,1.34133933]
[1732298519215,19.61074734,253.9,253.85,1.34133933]
[1732298519521,12.05586143,253.86,253.85,1.34133933]
[1732298519702,14.96176731,253.86,253.85,1.34133933]
[1732298520508,14.96220729,253.86,253.85,1.34133933]
[1732298520707,12.05586143,253.86,253.85,1.34133933]
[1732298521415,14.96329588,253.86,253.85,1.34133933]
[1732298521624,2.90743445,253.86,253.85,1.34133933]
[1732298523341,14.96329588,253.86,253.85,1.34133933]
[1732298525401,2.90743445,253.86,253.85,1.34133933]
[1732298527012,21.38215863,253.96,253.89,1.34133933]
[1732298527222,12.05586143,253.9,253.89,1.34133933]
[1732298527518,14.96802259,253.9,253.89,1.34133933]
[1732298528124,14.96802259,253.9,253.87,1.34133933]
[1732298528322,12.05586143,253.88,253.87,1.34133933]
[1732298528527,2.91216116,253.88,253.87,1.34133933]
[1732298528716,2.91216116,253.89,253.87,1.34133933]
[1732298528916,2.91216116,253.88,253.87,1.34133933]
[1732298531512,4.6611889,253.91,253.9,1.34133933]
[1732298531713,7.57398133,253.91,253.9,1.34133933]
[1732298532126,2.91279243,253.91,253.9,1.34133933]
[1732298532517,7.57252606,253.91,253.9,1.34133933]
[1732298532728,15.30253363,253.91,253.9,1.34133933]
[1732298532929,10.6428,253.91,253.9,1.34133933]
[1732298533231,10.6428,253.91,253.88,1.34133933]
[1732298533439,7.73000757,253.89,253.88,1.34133933]
[1732298533733,15.30253363,253.89,253.88,1.34133933]
[1732298534134,10.6428,253.89,253.88,1.34133933]
[1732298536020,10.6428,253.89,253.86,1.34133933]
[1732298536213,7.73000757,253.87,253.86,1.34133933]
[1732298536413,10.6428,253.87,253.86,1.34133933]
[1732298539238,7.73000757,253.89,253.86,1.34133933]
[1732298539436,2.91211077,253.88,253.86,1.34133933]
[1732298539625,2.91211077,253.87,253.86,1.34133933]
[1732298541522,10.64211834,253.87,253.86,1.34133933]
[1732298542745,10.64211834,253.87,253.84,1.34133933]
[1732298543035,7.73000757,253.85,253.84,1.34133933]
[1732298543215,10.64199431,253.85,253.84,1.34133933]
[1732298543416,2.91198674,253.85,253.84,1.34133933]
[1732298543728,2.91198674,253.85,253.81,1.34133933]
[1732298543729,10.64199431,253.85,253.81,1.34133933]
[1732298543920,7.73000757,253.82,253.81,1.34133933]
[1732298544114,10.64199431,253.82,253.81,1.34133933]
[1732298544722,2.91198674,253.82,253.81,1.34133933]
[1732298544943,2.91198674,253.82,253.81,5.25336197]
[1732298545237,2.91198674,253.82,253.81,1.34133933]
[1732298546039,4.65917879,253.88,253.87,1.34133933]
[1732298546216,2.91234251,253.88,253.87,1.34133933]
[1732298546549,10.64235008,253.88,253.87,1.34133933]
[1732298547228,2.91234251,253.88,253.87,1.34133933]
[1732298551129,10.64235008,253.88,253.85,1.34133933]
[1732298551339,7.73000757,253.86,253.84,1.34133933]
[1732298551535,10.64235008,253.85,253.82,1.34133933]
[1732298551847,7.5715213,253.84,253.82,1.34133933]
[1732298552021,2.91234251,253.83,253.82,1.34133933]
[1732298553044,2.91234251,253.84,253.82,1.34133933]
[1732298553345,2.91234251,253.83,253.82,1.34133933]
[1732298553641,7.5715213,253.84,253.82,1.34133933]
[1732298553946,2.91234251,253.83,253.82,1.34133933]
[1732298555036,7.57241317,253.85,253.84,1.34133933]
[1732298555238,7.57236352,253.85,253.84,1.34133933]
[1732298557041,2.91318473,253.85,253.84,1.34133933]
[1732298557230,2.91318473,253.86,253.84,1.34133933]
[1732298557434,2.91318473,253.85,253.84,1.34133933]
[1732298557648,7.57236352,253.87,253.84,1.34133933]
[1732298557833,2.91318473,253.86,253.84,1.34133933]
[1732298558034,2.91318473,253.85,253.84,1.34133933]
[1732298562654,6.14435863,253.92,253.84,45.11822333]
[1732298562831,4.6615938,253.93,253.91,25.11822333]
[1732298563024,6.14435863,253.94,253.91,25.11822333]
[1732298563025,2.9136518,253.92,253.91,45.11822333]
[1732298565750,18.22711661,253.95,253.92,43.776884]
[1732298566141,2.91265815,253.94,253.93,45.11822333]
[1732298566941,6.14435863,253.97,253.93,45.11822333]
[1732298567139,6.14435863,253.98,253.97,23.776884]
[1732298567345,2.91152998,253.98,253.96,1.34133933]
[1732298567538,2.91152998,253.97,253.96,1.34133933]
[1732298568957,14.99428796,253.97,253.96,1.34133933]
[1732298571853,12.08275798,253.97,253.96,1.34133933]
[1732298572031,14.99020581,253.97,253.96,1.34133933]
[1732298576952,10.63357318,253.97,253.96,1.34133933]
[1732298580635,2.90744783,253.97,253.96,1.34133933]
[1732298580838,2.90383937,253.97,253.96,1.34133933]
[1732298581453,10.62996472,253.97,253.96,1.34133933]
[1732298583265,10.62996472,253.97,253.94,1.34133933]
[1732298583564,7.72612535,253.95,253.92,1.34133933]
[1732298583760,7.72612535,253.93,253.92,1.34133933]
[1732298583960,10.62996472,253.93,253.92,1.34133933]
[1732298584462,10.62996472,253.93,253.92,2.12893933]
[1732298585260,10.62996472,253.93,253.92,0.7876]
[1732298585467,10.62996472,253.93,253.91,1.9691]
[1732298585760,7.72612535,253.93,253.92,1.34133933]
[1732298585936,10.62025801,253.93,253.92,1.34133933]
[1732298587064,10.62025801,253.93,253.89,0.7877]
[1732298587378,7.72612535,253.9,253.89,0.7877]
[1732298587541,10.61830137,253.9,253.89,0.7877]
[1732298590253,16.76266,253.9,253.89,0.7877]
[1732298590559,10.61830137,253.9,253.89,0.7877]
[1732298592839,10.61830137,253.9,253.87,2.7573]
[1732298593046,7.72612535,253.88,253.87,1.9695]
[1732298593251,2.89217602,253.88,253.87,2.7573]
[1732298593462,6.14435863,253.93,253.91,1.34133933]
[1732298593662,10.62229355,253.92,253.91,1.34133933]
[1732298594562,10.62229355,253.92,253.91,2.12893933]
[1732298595244,16.76665218,253.92,253.91,2.12893933]
[1732298595645,2.8961682,253.92,253.91,2.12893933]
[1732298595956,10.62229355,253.92,253.91,2.12893933]
[1732298596167,2.89558777,253.92,253.91,25.90582333]
[1732298596348,6.14435863,253.95,253.94,1.34133933]
[1732298596549,2.89649313,253.95,253.91,1.9692]
[1732298596854,2.89649313,253.94,253.91,1.9692]
[1732298597052,2.89649313,253.93,253.91,1.9692]
[1732298597265,10.62261848,253.92,253.89,0.7877]
[1732298597569,2.89649313,253.91,253.89,0.7877]
[1732298598168,7.72612535,253.9,253.89,0.7877]
[1732298598554,10.62511227,253.9,253.87,3.9389]
[1732298598869,7.72612535,253.9,253.87,3.9389]
[1732298599900,24.57743452,254.01,253.87,3.9389]
[1732298599901,7.72612535,253.94,253.87,3.9389]
[1732298600060,7.72612535,253.92,253.87,3.9389]
[1732298600363,7.72612535,253.9,253.87,3.9389]
[1732298600870,7.72612535,253.9,253.88,20.0]
[1732298601075,7.72612535,253.93,253.88,20.0]
[1732298601279,2.89817476,253.92,253.88,20.0]
[1732298601453,7.72612535,253.93,253.88,20.0]
[1732298601774,2.89806451,253.92,253.88,20.0]
[1732298602074,7.72612535,253.93,253.88,20.0]
[1732298602253,2.89854794,253.92,253.88,20.0]
[1732298602450,7.72612535,253.93,253.88,20.0]
[1732298602651,2.89851703,253.92,253.88,20.0]
[1732298602869,7.72612535,253.93,253.88,20.0]
[1732298602870,7.72612535,253.93,253.89,2.757]
[1732298603070,2.89847614,253.92,253.89,2.757]
[1732298603377,6.14435863,253.97,253.89,2.757]
[1732298603378,7.72612535,253.95,253.89,2.757]
[1732298603552,2.89858292,253.94,253.89,2.757]
[1732298603760,10.62470827,253.93,253.89,2.757]
[1732298603965,2.89858292,253.92,253.89,2.757]
[1732298604167,7.72612535,253.93,253.89,1.9693]
[1732298604470,2.89851949,253.92,253.89,1.9693]
[1732298604672,7.72612535,253.93,253.89,1.9693]
[1732298604979,2.89848273,253.92,253.9,20.0]
[1732298605158,2.89848273,253.91,253.9,20.0]
[1732298606378,7.72612535,253.93,253.91,6.8922]
[1732298606558,2.89832563,253.92,253.91,26.8922]
[1732298607271,2.89832563,253.92,253.89,20.0]
[1732298607479,13.87048398,253.93,253.89,20.0]
[1732298607480,10.62445098,253.91,253.89,20.0]
[1732298607659,7.72612535,253.91,253.89,20.0]
[1732298608465,13.87048398,253.93,253.89,20.0]
[1732298608774,2.89809146,253.92,253.89,20.0]
[1732298608976,2.89809146,253.91,253.89,20.0]
[1732298609170,13.87048398,253.93,253.89,20.0]
[1732298609367,2.89813804,253.92,253.89,20.0]
[1732298609565,2.89813804,253.91,253.9,6.8923]
[1732298610159,2.8980377,253.91,253.9,26.8923]
[1732298610476,10.62416305,253.91,253.9,26.8923]
[1732298611460,10.62416305,253.91,253.9,6.8923]
[1732298612177,16.76852168,253.91,253.9,6.8923]
[1732298612390,16.70744327,253.91,253.9,6.8923]
[1732298612573,10.62416305,253.91,253.9,6.8923]
[1732298612973,10.62416305,253.91,253.84,9.8485]
[1732298612974,13.30666331,253.91,253.84,9.8485]
[1732298613169,7.72612535,253.85,253.84,9.8485]
[1732298613684,10.62188307,253.85,253.84,9.8485]
[1732298614678,7.72612535,253.87,253.84,29.8485]
[1732298614909,13.80844479,253.89,253.85,20.0]
[1732298615184,2.89568184,253.88,253.85,20.0]
[1732298615368,7.72612535,253.89,253.85,20.0]
[1732298615564,2.89583131,253.88,253.85,20.0]
[1732298615755,7.72612535,253.89,253.85,20.0]
[1732298616273,7.72612535,253.89,253.87,20.0]
[1732298616584,2.89596317,253.88,253.87,20.0]
[1732298616776,2.89596317,253.88,253.86,5.5147]
[1732298616973,10.62208852,253.87,253.86,5.5147]
[1732298618379,10.62208852,253.87,253.84,9.8485]
[1732298618687,7.72612535,253.85,253.82,20.0]
[1732298618898,7.72612535,253.83,253.82,20.0]
[1732298619573,7.72612535,253.83,253.81,13.3957]
[1732298620666,2.89542689,253.82,253.81,7.8799]
[1732298621281,2.89542689,253.82,253.81,27.8799]
[1732298622485,2.89542689,253.82,253.81,29.4558]
[1732298623870,2.89542689,253.82,253.81,9.4558]
[1732298624070,2.89542689,253.82,253.81,1.5759]
[1732298625495,2.89654806,253.82,253.81,1.5759]
[1732298625703,2.89600803,253.82,253.77,9.8513]
[1732298625874,2.89600803,253.81,253.78,20.0]
[1732298626200,15.5337,253.83,253.77,9.8513]
[1732298626494,2.89613683,253.82,253.77,9.8513]
[1732298626696,2.89613683,253.82,253.72,16.7503]
[1732298626697,2.89613683,253.81,253.72,16.7503]
[1732298626894,7.72612535,253.73,253.72,16.7503]
[1732298627873,7.72612535,253.73,253.72,14.7797]
[1732298628092,7.72612535,253.73,253.72,34.7797]
[1732298628291,7.72612535,253.73,253.72,14.7797]
[1732298629684,7.72612535,253.73,253.72,34.7797]
[1732298629918,7.72612535,253.73,253.72,36.7503]
[1732298630478,7.72612535,253.73,253.69,1.9708]
[1732298630679,7.72612535,253.7,253.63,4.9284]
[1732298630901,2.89060293,253.69,253.63,4.9284]
[1732298631198,7.72612535,253.64,253.63,4.4284]
[1732298632178,7.72612535,253.64,253.57,6.9014]
[1732298632494,7.72612535,253.64,253.43,4.9323]
[1732298632495,16.4399,253.64,253.43,4.9323]
[1732298632674,16.4399,253.71,253.51,2.5]
[1732298632877,7.72612535,253.6,253.51,2.5]
[1732298633082,7.72612535,253.59,253.52,3.93091709]
[1732298634175,16.4399,253.71,253.54,20.0]
[1732298634176,7.72612535,253.57,253.54,20.0]
[1732298634395,7.72612535,253.56,253.54,20.0]
[1732298634696,16.4399,253.71,253.54,19.5]
[1732298634697,7.72612535,253.58,253.54,19.5]
[1732298634899,15.0181,253.79,253.55,28.08261709]
[1732298635103,7.72612535,253.68,253.55,31.71456196]
[1732298635275,7.72612535,253.67,253.55,31.71456196]
[1732298635680,7.72612535,253.67,253.57,2.5]
[1732298635892,7.72612535,253.69,253.58,27.70780109]
[1732298636090,7.72612535,253.69,253.6,23.776884]
[1732298636300,7.72612535,253.69,253.6,27.40882887]
[1732298636480,15.0181,253.79,253.61,2.5]
[1732298636680,15.0181,253.79,253.67,20.0]
[1732298636681,7.72612535,253.72,253.67,20.0]
[1732298636905,7.72612535,253.7,253.64,23.776884]
[1732298637103,7.72612535,253.7,253.67,20.0]
[1732298637682,15.0181,253.79,253.66,23.776884]
[1732298637900,7.72612535,253.7,253.67,20.0]
[1732298638394,7.72612535,253.7,253.69,20.0]
[1732298639880,7.72612535,253.7,253.68,5.5186]
[1732298640897,7.72612535,253.7,253.61,23.776884]
[1732298641211,7.72612535,253.67,253.61,23.776884]
[1732298641386,7.72612535,253.67,253.63,23.776884]
[1732298641587,7.72612535,253.69,253.64,20.0]
[1732298642190,30.9045014,253.76,253.6,21.2932]
[1732298642191,7.72612535,253.65,253.6,21.2932]
[1732298642483,15.0181,253.79,253.61,26.276884]
[1732298642683,7.72612535,253.69,253.61,23.776884]
[1732298642906,7.72612535,253.67,253.62,13.4058]
[1732298643302,7.72612535,253.65,253.62,13.4058]
[1732298643804,7.72612535,253.65,253.63,20.0]
[1732298644004,7.72612535,253.64,253.62,13.4058]
[1732298644189,7.72612535,253.64,253.62,5.52]
[1732298644795,7.72612535,253.64,253.58,9.8584]
[1732298645001,7.72612535,253.6,253.58,9.8584]
[1732298645708,7.72612535,253.6,253.56,6.9016]
[1732298646008,7.72612535,253.57,253.56,6.9016]
[1732298646821,7.72612535,253.57,253.52,9.8607]
[1732298646991,7.72612535,253.55,253.53,20.0]
[1732298647190,15.2947,253.68,253.52,9.8607]
[1732298647496,7.72612535,253.55,253.52,9.8607]
[1732298647893,30.9045014,253.63,253.52,9.8607]
[1732298648093,7.72612535,253.55,253.52,9.8607]
[1732298648712,7.72612535,253.55,253.53,20.0]
[1732298649111,7.72612535,253.55,253.54,1.972]
[1732298650116,7.72612535,253.55,253.52,1.9721]
[1732298650297,15.689,253.56,253.52,1.9721]
[1732298650497,7.72612535,253.53,253.52,1.9721]
[1732298651214,7.72612535,253.53,253.45,9.8638]
[1732298651416,7.72612535,253.5,253.45,9.8638]
[1732298652719,7.72612535,253.5,253.46,20.0]
[1732298652908,15.689,253.56,253.47,6.9041]
[1732298653219,15.689,253.56,253.48,19.5]
[1732298654017,15.689,253.56,253.49,4.9311]
[1732298654220,7.72612535,253.5,253.49,4.9311]
[1732298654792,38.63062675,253.5,253.49,4.9311]
[1732298655812,38.63062675,253.5,253.38,9.8662]
[1732298656004,7.72612535,253.42,253.39,20.0]
[1732298656406,7.72612535,253.43,253.39,20.0]
[1732298656921,15.689,253.56,253.41,20.0]
[1732298657116,15.689,253.56,253.43,20.0]
[1732298657117,7.72612535,253.53,253.43,20.0]
[1732298657295,7.72612535,253.55,253.45,20.0]